fUSD/lending_fUSD_20250221
["ID","MTS","AMOUNT","RATE_DAILY","PERIOD"]
[353937002,1740156639856,-872.89,0.00013424,2]
[353937003,1740156639866,-500.0,0.00013424,2]
[353937004,1740156639875,-1580.44,0.00013424,2]
[353937005,1740156639885,-500.0,0.00013424,2]
[353937006,1740156639894,-905.4,0.00013424,2]
[353937007,1740156639903,-500.0,0.00013424,2]
[353937008,1740156639913,-329.81718969,0.00013424,2]
[353937009,1740156639922,-2811.63,0.00013424,2]
[353937010,1740156639931,-500.0,0.00013424,2]
[353937011,1740156639941,-500.0,0.00013424,2]
[353937012,1740156639950,-500.0,0.00013424,2]
[353937013,1740156639959,-1393.38,0.00013424,2]
[353937014,1740156639969,-500.0,0.00013424,2]
[353937015,1740156639978,-500.0,0.00013424,2]
[353937016,1740156639988,-1177.69,0.00013424,2]
[353937017,1740156639997,-500.0,0.00013424,2]
[353937018,1740156640166,-500.0,0.00013424,2]
[353937019,1740156640177,-599.71,0.00013424,2]
[353937020,1740156640188,-500.0,0.00013424,2]
[353937021,1740156640199,-500.0,0.00013424,2]
[353937022,1740156640210,-500.0,0.00013424,2]
[353937023,1740156640221,-500.0,0.00013424,2]
[353937024,1740156640232,-897.63,0.00013424,2]
[353937025,1740156640243,-71.20509145,0.00013424,2]
[353937026,1740156640837,-306.73501039,0.00013424,2]
[353937027,1740156640858,-122.05989816,0.00013424,2]
[353937028,1740156640867,-570.56,0.00013424,2]
[353937029,1740156640877,-500.0,0.00013424,2]
[353937030,1740156640886,-500.0,0.00013424,2]
[353937031,1740156640896,-1455.79,0.00013424,2]
[353937032,1740156640905,-282.35507027,0.00013424,2]
[353937033,1740156640921,-217.64492973,0.00013424,2]
[353937034,1740156640930,-500.0,0.00013424,2]
[353937035,1740156640940,-437.77399959,0.00013424,2]
[353937036,1740156640949,-500.0,0.00013424,2]
[353937037,1740156640959,-543.19851015,0.00013424,2]
[353937038,1740156640967,-500.0,0.00013424,2]
[353937039,1740156640977,-682.07,0.00013424,2]
[353937040,1740156640986,-637.50345832,0.00013424,2]
[353937041,1740156640995,-500.0,0.00013424,2]
[353937042,1740156641004,-989.90518854,0.00013424,2]
[353937043,1740156641024,-1417.71481146,0.00013424,2]
[353937044,1740156641034,-275.87072793,0.00013424,2]
[353937045,1740156641045,-224.12927207,0.00013424,2]
[353937046,1740156641054,-135.87072793,0.00013424,2]
[353937047,1740156641084,-389.72381697,0.00013424,2]
[353937048,1740156641097,-500.0,0.00013424,2]
[353937049,1740156641106,-29.67734634,0.00013424,2]
[353937050,1740156641117,-470.32265366,0.00013424,2]
[353937051,1740156641127,-500.0,0.00013424,2]
[353937052,1740156641137,-500.0,0.00013424,2]
[353937053,1740156641146,-364.8617935,0.00013424,2]
[353937054,1740156641157,-135.1382065,0.00013424,2]
[353937055,1740156641171,-500.0,0.00013424,2]
[353937056,1740156641180,-1316.75,0.00013424,2]
[353937057,1740156641189,-500.0,0.00013424,2]
[353937058,1740156641198,-399.85353247,0.00013424,2]
[353937059,1740156641207,-500.0,0.00013424,2]
[353937060,1740156641217,-2827.93,0.00013424,2]
[353937061,1740156641227,-732.25,0.00013424,2]
[353937062,1740156641237,-216.99954789,0.00013424,2]
[353937063,1740156641247,-500.0,0.00013424,2]
[353937064,1740156641256,-508.44361638,0.00013424,2]
[353937065,1740156641266,-500.0,0.00013424,2]
[353937066,1740156641275,-2604.07,0.00013424,2]
[353937067,1740156641284,-500.0,0.00013424,2]
[353937068,1740156641293,-1964.4,0.00013424,2]
[353937069,1740156641302,-1722.78,0.00013424,2]
[353937070,1740156641312,-500.0,0.00013424,2]
[353937071,1740156641322,-500.0,0.00013424,2]
[353937072,1740156641332,-1399.39,0.00013424,2]
[353937073,1740156641345,-500.0,0.00013424,2]
[353937074,1740156641354,-500.0,0.00013424,2]
[353937075,1740156641363,-666.52,0.00013424,2]
[353937076,1740156641371,-500.0,0.00013424,2]
[353937077,1740156641380,-500.0,0.00013424,2]
[353937078,1740156641389,-500.0,0.00013424,2]
[353937079,1740156641399,-918.11,0.00013424,2]
[353937080,1740156641408,-500.0,0.00013424,2]
[353937081,1740156641417,-500.0,0.00013424,2]
[353937082,1740156641426,-500.0,0.00013424,2]
[353937083,1740156641435,-1737.91,0.00013424,2]
[353937084,1740156641443,-500.0,0.00013424,2]
[353937085,1740156641453,-1795.83,0.00013424,2]
[353937086,1740156641462,-500.0,0.00013424,2]
[353937087,1740156641471,-500.0,0.00013424,2]
[353937088,1740156641481,-500.0,0.00013424,2]
[353937089,1740156641490,-500.0,0.00013424,2]
[353937090,1740156641499,-500.0,0.00013424,2]
[353937091,1740156641508,-1137.47,0.00013424,2]
[353937092,1740156641517,-772.17,0.00013424,2]
[353937093,1740156641526,-1137.47,0.00013424,2]
[353937094,1740156641535,-500.0,0.00013424,2]
[353937095,1740156641544,-1519.35,0.00013424,2]
[353937096,1740156641553,-1137.47,0.00013424,2]
[353937097,1740156641562,-1707.33,0.00013424,2]
[353937098,1740156641571,-1137.47,0.00013424,2]
[353937099,1740156641580,-500.0,0.00013424,2]
[353937100,1740156641593,-500.0,0.00013424,2]
[353937101,1740156641602,-500.0,0.00013424,2]
[353937102,1740156641611,-505.85121896,0.00013424,2]
[353937103,1740156641621,-500.0,0.00013424,2]
[353937104,1740156641630,-2213.83,0.00013424,2]
[353937105,1740156641639,-500.0,0.00013424,2]
[353937106,1740156641649,-500.0,0.00013424,2]
[353937107,1740156641660,-500.0,0.00013424,2]
[353937108,1740156641670,-500.0,0.00013424,2]
[353937109,1740156641679,-500.0,0.00013424,2]
[353937110,1740156641689,-500.0,0.00013424,2]
[353937111,1740156641698,-1594.0,0.00013424,2]
[353937112,1740156641708,-500.0,0.00013424,2]
[353937113,1740156641717,-5903.54,0.00013424,2]
[353937114,1740156641726,-3175.69,0.00013424,2]
[353937115,1740156641735,-500.0,0.00013424,2]
[353937116,1740156641746,-844.49,0.00013424,2]
[353937117,1740156641755,-500.0,0.00013424,2]
[353937118,1740156641764,-500.0,0.00013424,2]
[353937119,1740156641774,-500.0,0.00013424,2]
[353937120,1740156641783,-500.0,0.00013424,2]
[353937121,1740156641793,-500.0,0.00013424,2]
[353937122,1740156641803,-530.48,0.00013424,2]
[353937123,1740156641812,-545.78,0.00013424,2]
[353937124,1740156641821,-500.0,0.00013424,2]
[353937125,1740156641830,-1578.75,0.00013424,2]
[353937126,1740156641844,-1865.65,0.00013424,2]
[353937127,1740156641853,-500.0,0.00013424,2]
[353937128,1740156641862,-1532.98,0.00013424,2]
[353937129,1740156641872,-500.0,0.00013424,2]
[353937130,1740156641882,-500.0,0.00013424,2]
[353937131,1740156641891,-500.0,0.00013424,2]
[353937132,1740156641901,-1801.59,0.00013424,2]
[353937133,1740156641909,-282.45407671,0.00013424,2]
[353937134,1740156641919,-557.64,0.00013424,2]
[353937135,1740156641928,-500.0,0.00013424,2]
[353937136,1740156641938,-154.0295714,0.00013424,2]
[353937137,1740156641947,-1575.97,0.00013424,2]
[353937138,1740156641957,-500.0,0.00013424,2]
[353937139,1740156641967,-1449.29,0.00013424,2]
[353937140,1740156641976,-500.0,0.00013424,2]
[353937141,1740156641985,-1709.08,0.00013424,2]
[353937142,1740156641994,-500.0,0.00013424,2]
[353937143,1740156642003,-500.0,0.00013424,2]
[353937144,1740156642012,-500.0,0.00013424,2]
[353937145,1740156642021,-500.0,0.00013424,2]
[353937146,1740156642030,-971.6,0.00013424,2]
[353937147,1740156642039,-500.0,0.00013424,2]
[353937148,1740156642049,-500.0,0.00013424,2]
[353937149,1740156642059,-500.0,0.00013424,2]
[353937150,1740156642069,-500.0,0.00013424,2]
[353937151,1740156642079,-500.0,0.00013424,2]
[353937152,1740156642088,-500.0,0.00013424,2]
[353937153,1740156642100,-875.78,0.00013424,2]
[353937154,1740156642109,-1835.23,0.00013424,2]
[353937155,1740156642118,-881.25,0.00013424,2]
[353937156,1740156642127,-500.0,0.00013424,2]
[353937157,1740156642136,-500.0,0.00013424,2]
[353937158,1740156642146,-500.0,0.00013424,2]
[353937159,1740156642158,-500.0,0.00013424,2]
[353937160,1740156642167,-500.0,0.00013424,2]
[353937161,1740156642177,-323.40896629,0.00013424,2]
[353937162,1740156642187,-500.0,0.00013424,2]
[353937163,1740156642197,-1400.18,0.00013424,2]
[353937164,1740156642206,-1091.73,0.00013424,2]
[353937165,1740156642216,-500.0,0.00013424,2]
[353937166,1740156642225,-500.0,0.00013424,2]
[353937167,1740156642239,-500.0,0.00013424,2]
[353937168,1740156642248,-1872.87,0.00013424,2]
[353937169,1740156642257,-500.0,0.00013424,2]
[353937170,1740156642266,-2026.17,0.00013424,2]
[353937171,1740156642276,-500.0,0.00013424,2]
[353937172,1740156642285,-500.0,0.00013424,2]
[353937173,1740156642295,-500.0,0.00013424,2]
[353937174,1740156642305,-500.0,0.00013424,2]
[353937175,1740156642315,-500.0,0.00013424,2]
[353937176,1740156642326,-796.79,0.00013424,2]
[353937177,1740156642336,-2266.99,0.00013424,2]
[353937178,1740156642352,-500.0,0.00013424,2]
[353937179,1740156642361,-500.0,0.00013424,2]
[353937180,1740156642370,-687.89,0.00013424,2]
[353937181,1740156642378,-1412.26,0.00013424,2]
[353937182,1740156642384,-500.0,0.00013424,2]
[353937183,1740156642390,-500.0,0.00013424,2]
[353937185,1740156642399,-500.0,0.00013424,2]
[353937187,1740156642409,-719.05,0.00013424,2]
[353937190,1740156642418,-500.0,0.00013424,2]
[353937192,1740156642427,-500.0,0.00013424,2]
[353937195,1740156642438,-1663.79,0.00013424,2]
[353937197,1740156642447,-500.0,0.00013424,2]
[353937198,1740156642457,-500.0,0.00013424,2]
[353937200,1740156642466,-500.0,0.00013424,2]
[353937201,1740156642475,-1989.43,0.00013424,2]
[353937202,1740156642484,-89.10323119,0.00013424,2]
[353937203,1740156642503,-327.33946271,0.00013424,2]
[353937206,1740156643298,-83.5573061,0.00013424,2]
[353937207,1740156643308,-500.0,0.00013424,2]
[353937208,1740156643318,-233.6412939,0.00013424,2]
[353937209,1740156643330,-1661.75806859,0.00013424,2]
[353937210,1740156643344,-366.50063751,0.00013424,2]
[353937211,1740156643354,-500.0,0.00013424,2]
[353937212,1740156643363,-105.66417133,0.00013424,2]
[353937213,1740156643383,-394.33582867,0.00013424,2]
[353937214,1740156643393,-432.46145084,0.00013424,2]
[353937215,1740156643404,-67.53854916,0.00013424,2]
[353937216,1740156643414,-502.37992106,0.00013424,2]
[353937217,1740156643423,-500.0,0.00013424,2]
[353937218,1740156643432,-500.0,0.00013424,2]
[353937219,1740156643442,-542.66,0.00013424,2]
[353937220,1740156643451,-500.0,0.00013424,2]
[353937221,1740156643460,-500.0,0.00013424,2]
[353937222,1740156643469,-500.0,0.00013424,2]
[353937223,1740156643479,-879.79,0.00013424,2]
[353937224,1740156643488,-500.0,0.00013424,2]
[353937225,1740156643497,-500.0,0.00013424,2]
[353937226,1740156643507,-76.66766757,0.00013424,2]
[353937227,1740156643518,-423.33233243,0.00013424,2]
[353937228,1740156643527,-2683.04,0.00013424,2]
[353937229,1740156643536,-500.0,0.00013424,2]
[353937230,1740156643546,-500.0,0.00013424,2]
[353937231,1740156643555,-500.0,0.00013424,2]
[353937232,1740156643564,-1445.59,0.00013424,2]
[353937233,1740156643574,-559.26,0.00013424,2]
[353937234,1740156643583,-1093.08,0.00013424,2]
[353937235,1740156643595,-500.0,0.00013424,2]
[353937236,1740156643604,-500.0,0.00013424,2]
[353937237,1740156643613,-617.93879158,0.00013424,2]
[353937238,1740156643624,-500.0,0.00013424,2]
[353937239,1740156643634,-500.0,0.00013424,2]
[353937240,1740156643643,-1632.61,0.00013424,2]
[353937241,1740156643653,-2118.92652259,0.00013424,2]
[353937242,1740156643664,-278.18347741,0.00013424,2]
[353937243,1740156643673,-500.0,0.00013424,2]
[353937244,1740156643682,-500.0,0.00013424,2]
[353937245,1740156643691,-500.0,0.00013424,2]
[353937246,1740156643701,-500.0,0.00013424,2]
[353937247,1740156643711,-500.0,0.00013424,2]
[353937248,1740156643720,-500.0,0.00013424,2]
[353937249,1740156643729,-551.31,0.00013424,2]
[353937250,1740156643739,-2450.02,0.00013424,2]
[353937251,1740156643748,-500.0,0.00013424,2]
[353937252,1740156643758,-644.08,0.00013424,2]
[353937253,1740156643767,-500.0,0.00013424,2]
[353937254,1740156643777,-243.3800064,0.00013424,2]
[353937255,1740156643786,-500.0,0.00013424,2]
[353937256,1740156643796,-500.0,0.00013424,2]
[353937257,1740156643805,-500.0,0.00013424,2]
[353937258,1740156643814,-919.16,0.00013424,2]
[353937259,1740156643823,-500.0,0.00013424,2]
[353937260,1740156643832,-500.0,0.00013424,2]
[353937261,1740156643845,-500.0,0.00013424,2]
[353937262,1740156643861,-1286.4,0.00013424,2]
[353937263,1740156643875,-500.0,0.00013424,2]
[353937264,1740156643891,-500.0,0.00013424,2]
[353937265,1740156643906,-500.0,0.00013424,2]
[353937266,1740156643922,-500.0,0.00013424,2]
[353937267,1740156643934,-500.0,0.00013424,2]
[353937268,1740156643949,-500.0,0.00013424,2]
[353937269,1740156643964,-339.45896907,0.00013424,2]
[353937270,1740156643984,-251.71103093,0.00013424,2]
[353937271,1740156643999,-1970.58,0.00013424,2]
[353937272,1740156644015,-1766.74,0.00013424,2]
[353937273,1740156644030,-410.06900859,0.00013424,2]
[353937274,1740156644044,-1537.4,0.00013424,2]
[353937275,1740156644060,-139.49996048,0.00013424,2]
[353937276,1740156644079,-360.50003952,0.00013424,2]
[353937277,1740156644094,-500.0,0.00013424,2]
[353937278,1740156644106,-519.3,0.00013424,2]
[353937279,1740156644125,-500.0,0.00013424,2]
[353937280,1740156644136,-500.0,0.00013424,2]
[353937281,1740156644148,-500.0,0.00013424,2]
[353937282,1740156644169,-918.0,0.00013424,2]
[353937283,1740156644183,-820.06,0.00013424,2]
[353937284,1740156644196,-500.0,0.00013424,2]
[353937285,1740156644212,-500.0,0.00013424,2]
[353937286,1740156644225,-532.37,0.00013424,2]
[353937287,1740156644240,-500.0,0.00013424,2]
[353937288,1740156644254,-500.0,0.00013424,2]
[353937289,1740156644267,-500.0,0.00013424,2]
[353937290,1740156644280,-500.0,0.00013424,2]
[353937291,1740156644294,-500.0,0.00013424,2]
[353937292,1740156644306,-1011.61,0.00013424,2]
[353937293,1740156644321,-500.0,0.00013424,2]
[353937294,1740156644335,-500.0,0.00013424,2]
[353937295,1740156644351,-500.0,0.00013424,2]
[353937296,1740156644365,-500.0,0.00013424,2]
[353937297,1740156644378,-774.78,0.00013424,2]
[353937298,1740156644391,-907.47,0.00013424,2]
[353937299,1740156644406,-76.37448384,0.00013424,2]
[353937300,1740156644423,-1931.73551616,0.00013424,2]
[353937301,1740156644437,-886.97,0.00013424,2]
[353937302,1740156644450,-500.0,0.00013424,2]
[353937303,1740156644464,-500.0,0.00013424,2]
[353937304,1740156644477,-500.0,0.00013424,2]
[353937305,1740156644491,-500.0,0.00013424,2]
[353937306,1740156644504,-2280.22,0.00013424,2]
[353937307,1740156644518,-500.0,0.00013424,2]
[353937308,1740156644531,-506.74930598,0.00013424,2]
[353937309,1740156644543,-2475.97,0.00013424,2]
[353937310,1740156644557,-500.0,0.00013424,2]
[353937311,1740156644571,-500.0,0.00013424,2]
[353937312,1740156644584,-500.0,0.00013424,2]
[353937313,1740156644599,-977.93,0.00013424,2]
[353937314,1740156644613,-255.825177,0.00013424,2]
[353937315,1740156644629,-1023.904823,0.00013424,2]
[353937316,1740156644643,-781.31,0.00013424,2]
[353937317,1740156644657,-500.0,0.00013424,2]
[353937318,1740156644670,-520.54,0.00013424,2]
[353937319,1740156644684,-500.0,0.00013424,2]
[353937320,1740156644697,-500.0,0.00013424,2]
[353937321,1740156644711,-500.0,0.00013424,2]
[353937322,1740156644724,-513.39,0.00013424,2]
[353937323,1740156644737,-500.0,0.00013424,2]
[353937324,1740156644751,-500.0,0.00013424,2]
[353937325,1740156644764,-500.0,0.00013424,2]
[353937326,1740156644778,-500.0,0.00013424,2]
[353937327,1740156644791,-500.0,0.00013424,2]
[353937328,1740156644804,-500.0,0.00013424,2]
[353937329,1740156644817,-500.0,0.00013424,2]
[353937330,1740156644831,-460.91763029,0.00013424,2]
[353937331,1740156644847,-525.23236971,0.00013424,2]
[353937332,1740156644861,-500.0,0.00013424,2]
[353937333,1740156644874,-1996.92,0.00013424,2]
[353937334,1740156644887,-500.0,0.00013424,2]
[353937335,1740156644900,-500.0,0.00013424,2]
[353937336,1740156644914,-500.0,0.00013424,2]
[353937337,1740156644927,-500.0,0.00013424,2]
[353937338,1740156644941,-500.0,0.00013424,2]
[353937339,1740156644955,-500.0,0.00013424,2]
[353937340,1740156644968,-1383.31,0.00013424,2]
[353937341,1740156644981,-500.0,0.00013424,2]
[353937342,1740156644995,-500.0,0.00013424,2]
[353937343,1740156645007,-335.66388977,0.00013424,2]
[353937344,1740156645021,-750.28,0.00013424,2]
[353937345,1740156645035,-500.0,0.00013424,2]
[353937346,1740156645048,-579.51,0.00013424,2]
[353937347,1740156645062,-500.0,0.00013424,2]
[353937348,1740156645076,-2282.1,0.00013424,2]
[353937349,1740156645089,-1545.62,0.00013424,2]
[353937350,1740156645104,-500.0,0.00013424,2]
[353937351,1740156645118,-500.0,0.00013424,2]
[353937352,1740156645132,-500.0,0.00013424,2]
[353937353,1740156645145,-500.0,0.00013424,2]
[353937354,1740156645162,-500.0,0.00013424,2]
[353937355,1740156645177,-500.0,0.00013424,2]
[353937356,1740156645190,-500.0,0.00013424,2]
[353937357,1740156645203,-857.77300133,0.00013424,2]
[353937358,1740156645221,-244.30699867,0.00013424,2]
[353937359,1740156645234,-500.0,0.00013424,2]
[353937361,1740156645250,-687.37,0.00013424,2]
[353937362,1740156645264,-500.0,0.00013424,2]
[353937363,1740156645277,-800.34,0.00013424,2]
[353937364,1740156645287,-995.04,0.00013424,2]
[353937365,1740156645297,-500.0,0.00013424,2]
[353937366,1740156645307,-1591.24,0.00013424,2]
[353937367,1740156645317,-500.0,0.00013424,2]
[353937368,1740156645327,-954.91,0.00013424,2]
[353937369,1740156645337,-500.0,0.00013424,2]
[353937370,1740156645350,-1208.84,0.00013424,2]
[353937372,1740156645360,-500.0,0.00013424,2]
[353937373,1740156645369,-3384.88,0.00013424,2]
[353937374,1740156645378,-500.0,0.00013424,2]
[353937375,1740156645388,-500.0,0.00013424,2]
[353937376,1740156645398,-1161.72,0.00013424,2]
[353937377,1740156645408,-500.0,0.00013424,2]
[353937378,1740156645418,-580.64,0.00013424,2]
[353937379,1740156645428,-600.64,0.00013424,2]
[353937380,1740156645438,-500.0,0.00013424,2]
[353937381,1740156645447,-500.0,0.00013424,2]
[353937382,1740156645456,-500.57796219,0.00013424,2]
[353937383,1740156645466,-500.0,0.00013424,2]
[353937384,1740156645475,-500.0,0.00013424,2]
[353937385,1740156645485,-500.0,0.00013424,2]
[353937386,1740156645494,-500.0,0.00013424,2]
[353937387,1740156645844,-158.01956839,0.00013424,2]
[353937388,1740156645861,-500.0,0.00013424,2]
[353937389,1740156645893,-1076.69,0.00013424,2]
[353937390,1740156645902,-2044.22,0.00013424,2]
[353937391,1740156645912,-500.0,0.00013424,2]
[353937392,1740156645921,-500.0,0.00013424,2]
[353937393,1740156645929,-500.0,0.00013424,2]
[353937394,1740156645939,-500.0,0.00013424,2]
[353937395,1740156645948,-500.0,0.00013424,2]
[353937396,1740156645958,-1686.16,0.00013424,2]
[353937397,1740156645967,-500.0,0.00013424,2]
[353937399,1740156645976,-500.0,0.00013424,2]
[353937401,1740156645985,-1154.3,0.00013424,2]
[353937402,1740156645995,-1304.39,0.00013424,2]
[353937403,1740156646004,-500.0,0.00013424,2]
[353937404,1740156646014,-500.0,0.00013424,2]
[353937405,1740156646024,-500.0,0.00013424,2]
[353937406,1740156646034,-281.75546875,0.00013424,2]
[353937407,1740156646047,-218.24453125,0.00013424,2]
[353937408,1740156646056,-308.37546875,0.00013424,2]
[353937409,1740156646068,-215.89453125,0.00013424,2]
[353937410,1740156646077,-42.50546875,0.00013424,2]
[353937411,1740156646089,-666.97453125,0.00013424,2]
[353937412,1740156646101,-641.72,0.00013424,2]
[353937413,1740156646110,-503.24398868,0.00013424,2]
[353937414,1740156646119,-500.0,0.00013424,2]
[353937415,1740156646128,-500.0,0.00013424,2]
[353937416,1740156646138,-500.79937832,0.00013424,2]
[353937417,1740156646148,-636.17748975,0.00013424,2]
[353937418,1740156646158,-500.0,0.00013424,2]
[353937419,1740156646169,-500.0,0.00013424,2]
[353937420,1740156646180,-500.0,0.00013424,2]
[353937421,1740156646188,-49.22931542,0.00013424,2]
[353937422,1740156646278,-1083.81068458,0.00013424,2]
[353937423,1740156646287,-500.0,0.00013424,2]
[353937424,1740156646297,-67.74998475,0.00013424,2]
[353937425,1740156646311,-432.25001525,0.00013424,2]
[353937426,1740156646321,-500.0,0.00013424,2]
[353937427,1740156646331,-500.0,0.00013424,2]
[353937428,1740156646344,-500.0,0.00013424,2]
[353937429,1740156646354,-500.0,0.00013424,2]
[353937430,1740156646364,-500.0,0.00013424,2]
[353937431,1740156646373,-500.0,0.00013424,2]
[353937432,1740156646383,-551.32,0.00013424,2]
[353937433,1740156646393,-500.0,0.00013424,2]
[353937434,1740156646402,-500.0,0.00013424,2]
[353937435,1740156646411,-468.81322618,0.00013424,2]
[353937436,1740156646438,-31.18677382,0.00013424,2]
[353937437,1740156646447,-500.0,0.00013424,2]
[353937438,1740156646457,-540.14919994,0.00013424,2]
[353937439,1740156646467,-500.0,0.00013424,2]
[353937440,1740156646477,-500.0,0.00013424,2]
[353937441,1740156646486,-500.0,0.00013424,2]
[353937442,1740156646495,-508.2821827,0.00013424,2]
[353937443,1740156646504,-500.0,0.00013424,2]
[353937444,1740156646514,-1000.0,0.00013424,2]
[353937445,1740156646524,-914.0,0.00013424,2]
[353937446,1740156646533,-170.93888278,0.00013424,2]
[353937447,1740156646543,-3900.35700471,0.00013477,2]
[353937448,1740156646553,-1254.0,0.000135,2]
[353937449,1740156646563,-150.0,0.00013521,2]
[353937450,1740156646573,-1102.66954065,0.00013524,2]
[353937451,1740156646582,-1076.54612114,0.00013524,2]
[353937452,1740156646594,-1105.86794237,0.00013524,2]
[353937453,1740156646603,-150.0,0.00013541,2]
[353937454,1740156646613,-1000.0,0.00013562,2]
[353937455,1740156646622,-491.98655844,0.00013586,2]
[353937456,1740156646631,-500.0,0.00013589,2]
[353937457,1740156646641,-1274.0,0.0001359,2]
[353937458,1740156646652,-2026.0,0.0001359,2]
[353937459,1740156646661,-639.0,0.0001359,2]
[353937460,1740156646671,-150.0,0.0001359,2]
[353937461,1740156646681,-569.0,0.0001359,2]
[353937462,1740156646691,-1787.0,0.0001359,2]
[353937463,1740156646701,-1424.0,0.0001359,2]
[353937464,1740156646710,-907.0,0.0001359,2]
[353937465,1740156646720,-784.0,0.0001359,2]
[353937466,1740156646729,-1266.0,0.0001359,2]
[353937467,1740156646738,-4031.0,0.0001359,2]
[353937468,1740156646747,-539.0,0.0001359,2]
[353937469,1740156646757,-250.0,0.0001359,2]
[353937470,1740156646766,-232.0,0.0001359,2]
[353937471,1740156646775,-170.0,0.0001359,2]
[353937472,1740156646785,-150.0,0.0001359,2]
[353937473,1740156646794,-500.0,0.00013599,2]
[353937474,1740156646804,-1137.47,0.00013599,2]
[353937475,1740156646813,-400.0,0.000136,4]
[353937476,1740156646823,-3900.35700471,0.0001363,2]
[353937477,1740156646832,-150.0,0.00013643,2]
[353937478,1740156646844,-500.0,0.0001367,2]
[353937479,1740156646854,-500.0,0.0001367,2]
[353937480,1740156646864,-1137.47,0.0001367,2]
[353937481,1740156646874,-1137.47,0.0001367,2]
[353937482,1740156646883,-151.0,0.00013671,2]
[353937483,1740156646893,-151.0,0.00013671,2]
[353937484,1740156646903,-500.0,0.00013695,2]
[353937485,1740156646913,-1137.47,0.00013695,2]
[353937486,1740156646922,-505.61,0.00013696,2]
[353937487,1740156646932,-151.0,0.00013696,2]
[353937488,1740156646941,-500.0,0.00013696,2]
[353937489,1740156646951,-500.0,0.00013696,2]
[353937490,1740156646960,-500.0,0.00013696,2]
[353937491,1740156646973,-500.0,0.00013696,2]
[353937492,1740156646982,-500.66,0.00013696,2]
[353937493,1740156646992,-500.0,0.00013696,2]
[353937494,1740156647000,-500.0,0.00013696,2]
[353937495,1740156647010,-500.0,0.00013696,2]
[353937496,1740156647019,-500.0,0.00013696,2]
[353937497,1740156647028,-500.0,0.00013696,2]
[353937498,1740156647039,-500.0,0.00013696,2]
[353937499,1740156647048,-500.0,0.00013696,2]
[353937500,1740156647058,-500.0,0.00013696,2]
[353937501,1740156647067,-500.0,0.00013696,2]
[353937502,1740156647076,-500.0,0.00013696,2]
[353937503,1740156647086,-500.0,0.00013696,2]
[353937504,1740156647097,-500.0,0.00013696,2]
[353937505,1740156647107,-500.0,0.00013696,2]
[353937506,1740156647117,-510.53,0.00013696,2]
[353937507,1740156647126,-500.0,0.00013696,2]
[353937508,1740156647135,-500.0,0.00013696,2]
[353937509,1740156647145,-500.0,0.00013696,2]
[353937510,1740156647155,-500.0,0.00013696,2]
[353937511,1740156647167,-500.0,0.00013696,2]
[353937512,1740156647177,-500.0,0.00013696,2]
[353937513,1740156647186,-500.0,0.00013696,2]
[353937514,1740156647197,-500.0,0.00013696,2]
[353937515,1740156647206,-500.0,0.00013696,2]
[353937516,1740156647216,-500.0,0.00013696,2]